bitfinex-derivatives/quotes_BTCF0:USTF0_20260221
["timestamp","ask_amount","ask_price","bid_price","bid_amount"]
[1771663321453,0.014704,68028.0,68020.0,0.014705]
[1771663321656,0.014704,68028.0,68015.0,0.014706]
[1771663321868,0.014704,68028.0,68024.0,0.014705]
[1771663322257,0.014704,68029.0,68024.0,0.014705]
[1771663322961,0.014704,68028.0,68023.0,0.014705]
[1771663323171,0.37759289,68030.0,68021.0,0.014705]
[1771663323464,0.014704,68029.0,68016.0,0.014706]
[1771663324666,0.014704,68029.0,68025.0,0.014704]
[1771663326356,0.37759289,68030.0,68025.0,0.014704]
[1771663326556,0.36288989,68030.0,68025.0,0.014704]
[1771663326761,0.36288989,68030.0,68027.0,0.014704]
[1771663327365,0.37759289,68030.0,68025.0,0.014704]
[1771663327555,0.37759289,68030.0,68026.0,0.014704]
[1771663334459,0.36288989,68030.0,68026.0,0.014704]
[1771663334659,0.014703,68034.0,68029.0,0.014703]
[1771663336266,0.014704,68028.0,68023.0,0.014705]
[1771663336465,0.014703,68033.0,68023.0,0.014705]
[1771663336466,0.014704,68029.0,68023.0,0.014705]
[1771663336669,0.014703,68031.0,68023.0,0.014705]
[1771663337571,0.014703,68030.0,68025.0,0.014704]
[1771663339073,0.014703,68032.0,68026.0,0.014704]
[1771663339273,0.014703,68031.0,68026.0,0.014704]
[1771663339882,0.014703,68032.0,68027.0,0.014704]
[1771663340977,0.014703,68034.0,68027.0,0.014704]
[1771663341275,0.014703,68034.0,68028.0,0.014704]
[1771663341476,0.014703,68034.0,68027.0,0.014704]
[1771663341869,0.014703,68034.0,68028.0,0.014704]
[1771663344074,0.014703,68034.0,68028.0,0.015504]
[1771663344269,0.014703,68034.0,68028.0,0.014704]
[1771663345981,0.014703,68034.0,68027.0,0.014704]
[1771663345982,0.014703,68032.0,68021.0,0.014705]
[1771663346178,0.014703,68032.0,68023.0,0.014705]
[1771663346378,0.014703,68031.0,68025.0,0.014704]
[1771663347878,0.014703,68031.0,68025.0,0.029408]
[1771663349283,0.014703,68031.0,68025.0,0.014704]
[1771663350281,0.014703,68031.0,68025.0,0.029408]
[1771663351684,0.014703,68030.0,68025.0,0.014704]
[1771663352984,0.014703,68030.0,68025.0,0.029408]
[1771663353183,0.014703,68030.0,68026.0,0.014704]
[1771663355283,0.029406,68032.0,68026.0,0.014704]
[1771663355988,0.014703,68031.0,68026.0,0.014704]
[1771663357384,0.014703,68032.0,68027.0,0.014704]
[1771663358286,0.014703,68034.0,68028.0,0.014704]
[1771663358487,0.014703,68034.0,68028.0,0.029408]
[1771663359293,0.014703,68034.0,68028.0,0.014704]
[1771663359591,0.029406,68034.0,68028.0,0.014704]
[1771663359890,0.014703,68034.0,68028.0,0.014704]
[1771663360284,0.029406,68034.0,68028.0,0.014704]
[1771663360584,0.014703,68034.0,68028.0,0.014704]
[1771663362294,0.014703,68033.0,68028.0,0.014704]
[1771663363294,0.014703,68032.0,68026.0,0.014704]
[1771663368699,0.014703,68031.0,68026.0,0.014704]
[1771663369198,0.014703,68031.0,68022.0,0.014705]
[1771663369398,0.014703,68031.0,68025.0,0.029408]
[1771663369597,0.014703,68031.0,68017.0,0.38541096]
[1771663369799,0.029406,68031.0,68025.0,0.014704]
[1771663370098,0.014703,68031.0,68026.0,0.014704]
[1771663385017,0.014703,68031.0,68027.0,0.014704]
[1771663387515,1.514701,68040.0,68027.0,0.014704]
[1771663387724,0.014703,68034.0,68029.0,0.014703]
[1771663388817,0.014702,68035.0,68029.0,0.014703]
[1771663389522,0.014703,68034.0,68029.0,0.014703]
[1771663392618,0.014702,68037.0,68032.0,0.014703]
[1771663393020,0.014702,68036.0,68031.0,0.014703]
[1771663393221,1.5,68040.0,68031.0,0.014703]
[1771663393824,0.014702,68037.0,68031.0,0.014703]
[1771663394025,0.014702,68038.0,68031.0,0.014703]
[1771663394230,0.014702,68037.0,68031.0,0.014703]
[1771663395026,0.014702,68037.0,68031.0,0.013333]
[1771663396529,0.014701,68039.0,68034.0,0.014702]
[1771663397326,0.014701,68039.0,68033.0,0.012393]
[1771663397530,0.014702,68038.0,68033.0,0.012393]
[1771663397824,0.014702,68038.0,68033.0,0.009513]
[1771663398423,0.014701,68039.0,68033.0,0.009513]
[1771663399724,0.014701,68041.0,68034.0,0.014702]
[1771663400227,0.014701,68041.0,68035.0,0.014702]
[1771663400625,0.014701,68041.0,68035.0,0.014172]
[1771663400823,1.514701,68040.0,68034.0,0.014702]
[1771663401026,0.014701,68040.0,68034.0,0.014702]
[1771663401227,0.014701,68040.0,68032.0,0.014703]
[1771663401529,0.014701,68040.0,68034.0,0.014702]
[1771663402133,0.014701,68040.0,68035.0,0.014702]
[1771663402333,0.014701,68040.0,68035.0,0.012202]
[1771663402534,0.014701,68040.0,68035.0,0.009772]
[1771663403232,0.014701,68041.0,68035.0,0.009772]
[1771663404437,0.014701,68040.0,68034.0,0.029404]
[1771663404631,0.014701,68041.0,68035.0,0.014702]
[1771663405019,0.014699,68052.0,68036.0,0.40370678]
[1771663405316,0.014699,68052.0,68045.0,0.0147]
[1771663405518,0.014698,68056.0,68049.0,0.014699]
[1771663406026,0.014698,68055.0,68049.0,0.014699]
[1771663406428,0.014698,68055.0,68048.0,0.014699]
[1771663406429,0.014698,68054.0,68048.0,0.014699]
[1771663406822,0.014698,68053.0,68047.0,0.0147]
[1771663410335,0.014699,68052.0,68046.0,0.0147]
[1771663412637,0.014698,68053.0,68047.0,0.0147]
[1771663412830,0.014698,68054.0,68047.0,0.0147]
[1771663413837,0.014698,68054.0,68048.0,0.029398]
[1771663414025,0.014698,68054.0,68048.0,0.014699]
[1771663415140,0.014698,68056.0,68049.0,0.014699]
[1771663415333,0.014697,68057.0,68049.0,0.014699]
[1771663415735,0.014698,68056.0,68050.0,0.014699]
[1771663416538,0.014698,68056.0,68049.0,0.014699]
[1771663416837,0.014698,68056.0,68050.0,0.014699]
[1771663417343,0.014698,68056.0,68051.0,0.014699]
[1771663417550,1.5,68058.0,68053.0,0.014698]
[1771663417749,1.514697,68058.0,68052.0,0.014698]
[1771663419027,1.514697,68058.0,68052.0,0.015538]
[1771663419230,1.514697,68058.0,68052.0,0.014698]
[1771663419431,1.514647,68058.0,68052.0,0.014698]
[1771663429548,0.014697,68057.0,68052.0,0.014698]
[1771663429849,0.014697,68057.0,68051.0,0.014699]
[1771663432449,0.014697,68057.0,68050.0,0.014699]
[1771663432651,0.014697,68057.0,68051.0,0.014699]
[1771663434145,0.014698,68054.0,68046.0,0.0147]
[1771663434350,0.014698,68054.0,68040.0,0.014701]
[1771663434351,0.014699,68050.0,68040.0,0.014701]
[1771663434545,0.014699,68051.0,68040.0,0.19388743]
[1771663434745,0.014698,68053.0,68044.0,0.0147]
[1771663434951,0.014698,68053.0,68047.0,0.0147]
[1771663435154,0.014697,68057.0,68049.0,0.014699]
[1771663435348,0.014698,68056.0,68050.0,0.014699]
[1771663435544,0.017,68060.0,68054.0,0.014698]
[1771663435750,0.017,68060.0,68056.0,0.014698]
[1771663436548,1.5,68059.0,68056.0,0.014698]
[1771663437352,0.017,68060.0,68056.0,0.014698]
[1771663437557,0.017,68060.0,68055.0,0.014698]
[1771663437858,1.517,68060.0,68055.0,0.014698]
[1771663438261,0.017,68060.0,68055.0,0.014698]
[1771663438849,0.001,68059.0,68055.0,0.014698]
[1771663439359,0.017,68060.0,68055.0,0.014698]
[1771663439945,0.017,68060.0,68056.0,0.014698]
[1771663444560,0.017,68060.0,68055.0,0.014698]
[1771663445256,0.017,68060.0,68054.0,0.014698]
[1771663445257,0.017,68060.0,68056.0,0.014698]
[1771663445466,1.514696,68062.0,68056.0,0.014698]
[1771663445660,1.514696,68062.0,68055.0,0.014698]
[1771663446056,1.514696,68062.0,68056.0,0.00088]
[1771663446254,1.514696,68062.0,68055.0,0.014698]
[1771663448564,1.514696,68062.0,68056.0,0.014698]
[1771663449067,1.514696,68062.0,68056.0,0.015578]
[1771663449265,1.514696,68062.0,68056.0,0.014698]
[1771663449960,1.514696,68062.0,68055.0,0.014698]
[1771663451565,0.014697,68061.0,68055.0,0.014698]
[1771663452669,1.514696,68062.0,68055.0,0.014698]
[1771663453163,0.014697,68061.0,68055.0,0.014698]
[1771663455271,0.014697,68061.0,68050.0,0.17979643]
[1771663455773,0.029394,68061.0,68050.0,0.17979643]
[1771663455963,0.014697,68060.0,68050.0,0.17979643]
[1771663456178,1.5,68062.0,68047.0,0.45039185]
[1771663456377,0.014698,68054.0,68041.0,0.014701]
[1771663456781,0.014698,68054.0,68042.0,0.014701]
[1771663457178,0.014698,68053.0,68042.0,0.014701]
[1771663457784,0.014699,68052.0,68042.0,0.014701]
[1771663458283,0.014699,68051.0,68042.0,0.014701]
[1771663458479,0.014699,68052.0,68043.0,0.0147]
[1771663458882,0.014698,68054.0,68043.0,0.46387015]
[1771663459084,0.014699,68053.0,68044.0,0.17979643]
[1771663460073,0.014699,68052.0,68044.0,0.17979643]
[1771663460685,0.014699,68053.0,68044.0,0.17979643]
[1771663461082,0.029398,68053.0,68043.0,0.46387015]
[1771663461283,0.014698,68055.0,68045.0,0.0147]
[1771663464182,0.014698,68055.0,68045.0,0.0294]
[1771663464382,0.014698,68055.0,68046.0,0.0147]
[1771663464690,0.014698,68056.0,68046.0,0.0147]
[1771663464895,0.014697,68058.0,68048.0,0.014699]
[1771663465196,0.029394,68058.0,68048.0,0.014699]
[1771663465988,0.014698,68057.0,68048.0,0.014699]
[1771663466295,0.014698,68055.0,68046.0,0.0147]
[1771663467997,0.014699,68051.0,68039.0,0.014701]
[1771663468293,0.014698,68053.0,68041.0,0.014701]
[1771663468591,0.014699,68050.0,68041.0,0.014701]
[1771663468791,0.014699,68050.0,68040.0,0.19449743]
[1771663468998,0.014699,68050.0,68041.0,0.014701]
[1771663470894,0.014699,68050.0,68042.0,0.014701]
[1771663471795,0.014699,68050.0,68041.0,0.014701]
[1771663474394,0.014699,68050.0,68042.0,0.014701]
[1771663475291,0.014699,68051.0,68042.0,0.014701]
[1771663475597,0.014699,68050.0,68041.0,0.014701]
[1771663476195,0.014699,68049.0,68040.0,0.17979643]
[1771663476397,0.014699,68049.0,68040.0,0.19449743]
[1771663479795,0.014699,68048.0,68040.0,0.17979643]
[1771663480799,0.0147,68047.0,68040.0,0.17979643]
[1771663481298,0.014699,68048.0,68040.0,0.014701]
[1771663481497,0.014699,68048.0,68038.0,0.014702]
[1771663481685,0.014699,68048.0,68039.0,0.014701]
[1771663486103,0.029399,68048.0,68039.0,0.014701]
[1771663486307,0.014699,68048.0,68039.0,0.014701]
[1771663489303,0.014699,68048.0,68040.0,0.014701]
[1771663489704,0.014699,68048.0,68039.0,0.014701]
[1771663491401,0.0147,68047.0,68039.0,0.014701]
[1771663491709,0.2044977,68046.0,68039.0,0.014701]
[1771663492006,0.2044977,68045.0,68039.0,0.014701]
[1771663492204,0.2044977,68044.0,68039.0,0.014701]
[1771663492406,0.12862398,68043.0,68039.0,0.014701]
[1771663492606,0.014699,68048.0,68039.0,0.014701]
[1771663492906,0.0147,68047.0,68039.0,0.014701]
[1771663494109,0.014699,68048.0,68039.0,0.014701]
[1771663494801,0.014699,68048.0,68039.0,0.029402]
[1771663496011,0.2541149,68059.0,68035.0,0.44917015]
[1771663496203,0.05764223,68060.0,68030.0,0.05764223]
[1771663496204,0.014701,68040.0,68032.0,0.014703]
[1771663496406,0.014701,68041.0,68032.0,0.029406]
[1771663496711,0.014701,68041.0,68032.0,0.014703]
[1771663497415,0.014701,68041.0,68032.0,0.029406]
[1771663497609,0.014701,68041.0,68032.0,0.014703]
[1771663498015,0.014701,68041.0,68032.0,0.029406]
[1771663498511,0.014701,68041.0,68033.0,0.014703]
[1771663499107,0.029402,68041.0,68032.0,0.014703]
[1771663499514,0.014701,68041.0,68030.0,0.07234523]
[1771663499807,0.014701,68041.0,68029.0,0.014703]
[1771663499808,0.014701,68040.0,68031.0,0.014703]
[1771663501310,0.014701,68040.0,68031.0,0.029406]
[1771663501701,0.014699,68048.0,68039.0,0.014701]
[1771663502016,1.5,68062.0,68041.0,0.014701]
[1771663502017,0.014699,68051.0,68041.0,0.014701]
[1771663502207,0.014699,68050.0,68041.0,0.014701]
[1771663502409,0.014699,68050.0,68040.0,0.014701]
[1771663502609,0.014699,68049.0,68040.0,0.014701]
[1771663502914,0.014699,68049.0,68039.0,0.43028852]
[1771663503100,0.0147,68047.0,68039.0,0.41558752]
[1771663504509,0.20865731,68046.0,68039.0,0.41558752]
[1771663504815,0.20865731,68045.0,68039.0,0.41558752]
[1771663505016,0.20865731,68044.0,68039.0,0.41558752]
[1771663505213,0.20865731,68043.0,68039.0,0.41558752]
[1771663505404,0.20865731,68042.0,68039.0,0.41558752]
[1771663505608,0.20865731,68041.0,68037.0,0.014702]
[1771663505807,0.0147,68047.0,68037.0,0.014702]
[1771663506410,0.0147,68046.0,68037.0,0.014702]
[1771663509019,0.0147,68046.0,68036.0,0.014702]
[1771663509222,0.0147,68046.0,68034.0,0.014702]
[1771663509223,0.0147,68045.0,68035.0,0.014702]
[1771663510026,0.0147,68044.0,68035.0,0.014702]
[1771663512517,0.014699,68048.0,68038.0,0.014701]
[1771663513122,0.0147,68046.0,68038.0,0.014701]
[1771663515428,0.014699,68048.0,68037.0,0.014702]
[1771663516329,0.014699,68048.0,68039.0,0.014701]
[1771663517829,0.20239546,68047.0,68039.0,0.014701]
[1771663518026,0.20239546,68046.0,68039.0,0.014701]
[1771663518233,0.20239546,68045.0,68039.0,0.014701]
[1771663518526,0.20239546,68044.0,68039.0,0.014701]
[1771663518728,0.20239546,68043.0,68039.0,0.014701]
[1771663518929,0.20239546,68042.0,68039.0,0.014701]
[1771663519128,0.20239546,68041.0,68039.0,0.014701]
[1771663519333,0.0147,68047.0,68038.0,0.014702]
[1771663519627,0.0147,68048.0,68034.0,0.014702]
[1771663519817,0.71725701,68067.0,68030.0,0.014703]
[1771663519818,0.014701,68040.0,68030.0,0.014703]
[1771663520022,0.014702,68038.0,68030.0,0.014703]
[1771663525333,0.014701,68039.0,68032.0,0.014703]
[1771663525534,0.014701,68039.0,68031.0,0.014703]
[1771663525735,0.014701,68039.0,68032.0,0.014703]
[1771663526038,0.43622173,68046.0,68032.0,0.014703]
[1771663526039,0.014701,68042.0,68034.0,0.014702]
[1771663528235,0.014701,68041.0,68034.0,0.014702]
[1771663528423,0.014701,68041.0,68033.0,0.014703]
[1771663529934,0.014701,68041.0,68034.0,0.014702]
[1771663531937,0.029403,68039.0,68031.0,0.014703]
[1771663532137,0.014701,68039.0,68031.0,0.014703]
[1771663532631,0.014701,68039.0,68032.0,0.014703]
[1771663534639,0.014701,68040.0,68032.0,0.014703]
[1771663534833,0.014702,68034.0,68024.0,0.014704]
[1771663535037,0.014702,68034.0,68026.0,0.014704]
[1771663535227,0.014703,68033.0,68026.0,0.014704]
[1771663535432,0.014703,68032.0,68024.0,0.014705]
[1771663535840,0.014703,68033.0,68025.0,0.014704]
[1771663536131,0.014703,68034.0,68027.0,0.014704]
[1771663538635,0.014703,68034.0,68025.0,0.014704]
[1771663538842,0.014703,68032.0,68025.0,0.014704]
[1771663540641,0.014703,68032.0,68023.0,0.014705]
[1771663541541,0.014703,68032.0,68025.0,0.014704]
[1771663542944,0.014703,68032.0,68021.0,0.014705]
[1771663543143,0.014703,68032.0,68023.0,0.014705]
[1771663543144,0.014703,68031.0,68023.0,0.014705]
[1771663543537,0.014703,68032.0,68024.0,0.014705]
[1771663543835,0.014703,68032.0,68023.0,0.014705]
[1771663544241,0.014703,68031.0,68023.0,0.014705]
[1771663544433,0.014703,68031.0,68023.0,0.02941]
[1771663545242,0.014703,68031.0,68024.0,0.014705]
[1771663545433,0.014703,68032.0,68024.0,0.014705]
[1771663549742,0.4276031,68032.0,68008.0,0.33003686]
[1771663549959,0.014703,68030.0,68021.0,0.014705]
[1771663550248,0.2019,68031.0,68023.0,0.014705]
[1771663550249,0.2019,68029.0,68023.0,0.014705]
[1771663550449,0.2019,68028.0,68023.0,0.014705]
[1771663550641,0.2019,68027.0,68023.0,0.014705]
[1771663550843,0.2019,68026.0,68023.0,0.014705]
[1771663551135,0.2019,68025.0,68023.0,0.014705]
[1771663551339,0.014703,68031.0,68023.0,0.014705]
[1771663551540,0.029406,68031.0,68023.0,0.014705]
[1771663551741,0.014703,68030.0,68022.0,0.014705]
[1771663551945,0.014704,68028.0,68021.0,0.014705]
[1771663552246,0.014705,68025.0,68016.0,0.014706]
[1771663553442,0.02941,68025.0,68016.0,0.014706]
[1771663554043,0.014705,68025.0,68016.0,0.014706]
[1771663555841,0.014703,68031.0,68005.0,0.014709]
[1771663556045,0.014705,68024.0,68015.0,0.014707]
[1771663559551,0.014705,68023.0,68013.0,0.014707]
[1771663559746,0.014705,68021.0,68013.0,0.014707]
[1771663560051,0.014705,68022.0,68015.0,0.00084]
[1771663560248,0.014705,68022.0,68013.0,0.014707]
[1771663560848,0.014705,68023.0,68014.0,0.014707]
[1771663561350,0.014705,68023.0,68013.0,0.014707]
[1771663562451,0.014705,68023.0,68014.0,0.014707]
[1771663563448,0.2055854,68022.0,68014.0,0.014707]
[1771663563647,0.2055854,68021.0,68014.0,0.014707]
[1771663563843,0.014705,68023.0,68014.0,0.014707]
[1771663564051,0.2055854,68022.0,68014.0,0.014707]
[1771663564252,0.014705,68023.0,68014.0,0.014707]
[1771663564253,0.2055854,68021.0,68014.0,0.014707]
[1771663564448,0.014705,68023.0,68014.0,0.014707]
[1771663564637,0.20561025,68022.0,68014.0,0.014707]
[1771663564843,0.20561025,68021.0,68014.0,0.014707]
[1771663565142,0.014705,68023.0,68014.0,0.014707]
[1771663565343,0.20561846,68022.0,68014.0,0.014707]
[1771663565546,0.20561846,68021.0,68014.0,0.014707]
[1771663565745,0.014705,68023.0,68014.0,0.014707]
[1771663565947,0.20561846,68022.0,68014.0,0.014707]
[1771663566149,0.20561846,68021.0,68014.0,0.014707]
[1771663566349,0.014705,68023.0,68014.0,0.014707]
[1771663566550,0.20562158,68022.0,68014.0,0.014707]
[1771663566750,0.20562158,68021.0,68014.0,0.014707]
[1771663566952,0.014705,68023.0,68014.0,0.014707]
[1771663567147,0.20562158,68022.0,68014.0,0.014707]
[1771663567344,0.20562158,68021.0,68015.0,0.014707]
[1771663567546,0.014704,68029.0,68019.0,0.014706]
[1771663567739,0.20561204,68028.0,68019.0,0.19469109]
[1771663567942,0.20561204,68027.0,68019.0,0.20939709]
[1771663568143,0.20561204,68026.0,68019.0,0.19469109]
[1771663568442,0.20561204,68025.0,68019.0,0.014706]
[1771663568643,0.20561204,68024.0,68019.0,0.014706]
[1771663568850,0.014704,68029.0,68019.0,0.014706]
[1771663569053,0.20562752,68028.0,68023.0,0.00096]
[1771663569244,0.20562752,68027.0,68019.0,0.014706]
[1771663570649,0.014704,68026.0,68010.0,0.62039283]
[1771663570852,0.20562752,68025.0,68016.0,0.014706]
[1771663571043,0.20562752,68025.0,68016.0,0.029412]
[1771663571446,0.20562752,68025.0,68017.0,0.014706]
[1771663573256,0.20562752,68025.0,68017.0,0.029412]
[1771663574056,0.20562752,68025.0,68018.0,0.014706]
[1771663581468,0.20562752,68024.0,68018.0,0.014706]
[1771663581767,0.20562752,68023.0,68019.0,0.014706]
[1771663581968,0.20562752,68022.0,68019.0,0.014706]
[1771663582168,0.20562752,68021.0,68019.0,0.014706]
[1771663582368,0.20562752,68020.0,68019.0,0.014706]
[1771663584169,0.03829181,68020.0,68018.0,0.014706]
[1771663584371,0.014704,68027.0,68018.0,0.014706]
[1771663585874,0.014704,68026.0,68018.0,0.014706]
[1771663587065,0.014704,68026.0,68020.0,0.0008]
[1771663587267,0.014704,68026.0,68018.0,0.014706]
[1771663594099,0.014703,68030.0,68019.0,0.014706]
[1771663594391,0.01470289,68039.0,68028.0,0.014704]
[1771663594589,0.014702,68036.0,68028.0,0.014704]
[1771663596689,0.014702,68036.0,68029.0,0.014703]
[1771663599100,0.014702,68036.0,68030.0,0.00088]
[1771663599409,0.014702,68036.0,68029.0,0.014703]
[1771663600686,0.46963806,68041.0,68030.0,0.014703]
[1771663600891,0.014702,68038.0,68030.0,0.014703]
[1771663601802,0.029404,68038.0,68030.0,0.014703]
[1771663602208,0.014702,68036.0,68029.0,0.014703]
[1771663602500,0.014703,68030.0,68023.0,0.014705]
[1771663602698,0.014703,68030.0,68015.0,0.014706]
[1771663603604,0.014703,68030.0,68023.0,0.014705]
[1771663604308,0.014703,68032.0,68023.0,0.014705]
[1771663604495,0.014703,68032.0,68024.0,0.014705]
[1771663605802,0.014703,68031.0,68024.0,0.014705]
[1771663613399,0.014703,68031.0,68023.0,0.014705]
[1771663614397,0.014703,68030.0,68023.0,0.014705]
[1771663615297,0.014703,68031.0,68022.0,0.014705]
[1771663615792,0.014703,68030.0,68023.0,0.014705]
[1771663619710,0.014704,68029.0,68022.0,0.014705]
[1771663619903,0.014703,68030.0,68023.0,0.014705]
[1771663621217,0.014703,68030.0,68024.0,0.014705]
[1771663621410,0.014703,68030.0,68022.0,0.02941]
[1771663621611,0.014703,68030.0,68023.0,0.014705]
[1771663622803,0.014703,68030.0,68022.0,0.014705]
[1771663623010,0.014703,68030.0,68022.0,0.02941]
[1771663623606,0.014703,68030.0,68022.0,0.014705]
[1771663624001,0.014703,68030.0,68023.0,0.014705]
[1771663624509,0.014705,68025.0,68015.0,0.014706]
[1771663624707,0.014705,68025.0,68017.0,0.014706]
[1771663626215,0.014705,68024.0,68017.0,0.014706]
[1771663626400,0.014705,68022.0,68007.0,0.014708]
[1771663626606,0.014705,68022.0,68013.0,0.029414]
[1771663627005,0.014705,68022.0,68014.0,0.014707]
[1771663629317,0.014705,68023.0,68015.0,0.014706]
[1771663630317,0.014705,68022.0,68002.0,0.44160006]
[1771663630518,0.014705,68021.0,68013.0,0.014707]
[1771663631216,0.014705,68022.0,68013.0,0.014707]
[1771663631511,0.014705,68022.0,68014.0,0.014707]
[1771663631818,0.014705,68025.0,68016.0,0.014706]
[1771663632003,0.20231975,68024.0,68016.0,0.014706]
[1771663632206,0.014705,68025.0,68016.0,0.014706]
[1771663632408,0.20228951,68024.0,68016.0,0.014706]
[1771663632708,0.014705,68025.0,68016.0,0.014706]
[1771663633016,0.21699451,68024.0,68016.0,0.014706]
[1771663633220,0.014705,68024.0,68016.0,0.014706]
[1771663634309,0.20224007,68023.0,68016.0,0.014706]
[1771663634516,0.20224007,68022.0,68016.0,0.029412]
[1771663634816,0.014705,68024.0,68016.0,0.029412]
[1771663635011,0.20224007,68023.0,68016.0,0.014706]
[1771663635210,0.20224007,68022.0,68016.0,0.014706]
[1771663635413,0.014705,68024.0,68016.0,0.014706]
[1771663635619,0.20222382,68023.0,68016.0,0.014706]
[1771663635920,0.014703,68030.0,68022.0,0.014705]
[1771663636813,0.014704,68029.0,68021.0,0.014705]
[1771663637915,0.014704,68029.0,68021.0,0.02941]
[1771663638621,0.014704,68029.0,68021.0,0.014705]
[1771663639120,0.014704,68028.0,68020.0,0.014705]
[1771663639621,0.014704,68027.0,68020.0,0.014705]
[1771663641017,0.014704,68027.0,68019.0,0.014706]
[1771663642914,0.029408,68027.0,68019.0,0.014706]
[1771663643215,0.014704,68028.0,68021.0,0.014705]
[1771663646424,0.029408,68028.0,68021.0,0.014705]
[1771663647324,0.014704,68028.0,68021.0,0.014705]
[1771663647723,0.029408,68028.0,68021.0,0.014705]
[1771663647926,0.21918079,68027.0,68018.0,0.014706]
[1771663648116,0.014704,68025.0,68018.0,0.014706]
[1771663648316,0.20447679,68024.0,68018.0,0.014706]
[1771663649614,0.21918179,68024.0,68015.0,0.014707]
[1771663649814,0.20447679,68023.0,68016.0,0.014706]
[1771663650319,0.21918179,68023.0,68015.0,0.014706]
[1771663650519,0.21918179,68022.0,68011.0,0.014707]
[1771663650824,0.014706,68020.0,68011.0,0.014707]
[1771663651017,0.20447679,68019.0,68012.0,0.014707]
[1771663651413,0.20447679,68019.0,68013.0,0.014707]
[1771663651613,0.20447679,68019.0,68012.0,0.014707]
[1771663653326,0.20447679,68019.0,68013.0,0.014707]
[1771663653624,0.014705,68021.0,68013.0,0.014707]
[1771663653825,0.2043464,68020.0,68013.0,0.014707]
[1771663654025,0.2043464,68019.0,68013.0,0.014707]
[1771663654225,0.014705,68021.0,68013.0,0.014707]
[1771663654525,0.20437516,68020.0,68013.0,0.014707]
[1771663654721,0.20437516,68019.0,68013.0,0.014707]
[1771663654922,0.014705,68021.0,68013.0,0.014707]
[1771663655123,0.20437516,68020.0,68013.0,0.014707]
[1771663655320,0.20437516,68019.0,68013.0,0.014707]
[1771663655516,0.20437516,68018.0,68013.0,0.014707]
[1771663655718,0.014705,68021.0,68013.0,0.014707]
[1771663655918,0.2043831,68020.0,68013.0,0.014707]
[1771663656118,0.2043831,68019.0,68013.0,0.014707]
[1771663656321,0.2043831,68019.0,68009.0,0.014708]
[1771663656322,0.2043831,68018.0,68009.0,0.014708]
[1771663656525,0.014706,68018.0,68010.0,0.014707]
[1771663656821,0.21910251,68017.0,68009.0,0.014708]
[1771663657026,0.014706,68017.0,68009.0,0.014708]
[1771663657219,0.014706,68018.0,68010.0,0.014708]
[1771663657417,0.20439594,68017.0,68010.0,0.014708]
[1771663657617,0.014706,68018.0,68010.0,0.014708]
[1771663657824,0.20439594,68017.0,68010.0,0.014708]
[1771663658019,0.4328065,68022.0,68008.0,0.014708]
[1771663658227,0.014706,68017.0,68000.0,0.01471]
[1771663658426,0.014706,68017.0,68009.0,0.014708]
[1771663658628,0.014706,68018.0,68010.0,0.014708]
[1771663658926,0.20439647,68017.0,68010.0,0.014708]
[1771663659126,0.014706,68019.0,68010.0,0.014707]
[1771663659330,0.20439647,68018.0,68010.0,0.014707]
[1771663659526,0.20439647,68017.0,68010.0,0.014707]
[1771663659724,0.014706,68019.0,68010.0,0.014707]
[1771663660027,0.20439765,68018.0,68010.0,0.014707]
[1771663660226,0.20439765,68017.0,68010.0,0.014707]
[1771663660427,0.014706,68019.0,68010.0,0.014707]
[1771663660627,0.20439893,68018.0,68011.0,0.014707]
[1771663660816,0.20439893,68017.0,68011.0,0.014707]
[1771663661021,0.014706,68019.0,68010.0,0.014707]
[1771663661222,0.20439893,68018.0,68010.0,0.014707]
[1771663661422,0.20439893,68017.0,68010.0,0.014707]
[1771663661621,0.014706,68019.0,68011.0,0.014707]
[1771663661817,0.20439004,68018.0,68011.0,0.014707]
[1771663662025,0.014706,68019.0,68011.0,0.014707]
[1771663662026,0.20439325,68017.0,68011.0,0.014707]
[1771663662222,0.014706,68019.0,68011.0,0.014707]
[1771663662528,0.20438522,68018.0,68011.0,0.014707]
[1771663662728,0.20438522,68017.0,68011.0,0.014707]
[1771663662930,0.014706,68019.0,68011.0,0.014707]
[1771663663230,0.20438522,68018.0,68011.0,0.014707]
[1771663663428,0.20438522,68017.0,68011.0,0.014707]
[1771663663624,0.014706,68019.0,68011.0,0.014707]
[1771663663827,0.20437546,68018.0,68011.0,0.014707]
[1771663664024,0.20437546,68017.0,68011.0,0.014707]
[1771663664223,0.014706,68019.0,68011.0,0.014707]
[1771663664424,0.20436691,68018.0,68011.0,0.014707]
[1771663664731,0.20436691,68017.0,68011.0,0.014707]
[1771663664931,0.014706,68019.0,68011.0,0.014707]
[1771663666238,0.014707,68012.0,68004.0,0.014709]
[1771663666427,0.21908655,68011.0,68003.0,0.014709]
[1771663666626,0.20437955,68010.0,68003.0,0.014709]
[1771663666934,0.20437955,68010.0,68005.0,0.014709]
[1771663667227,0.21087123,68009.0,68004.0,0.014709]
[1771663667428,0.029414,68013.0,68004.0,0.014709]
[1771663667625,0.21080297,68012.0,68004.0,0.014709]
[1771663667929,0.21080297,68011.0,68004.0,0.014709]
[1771663668128,0.21080297,68010.0,68004.0,0.014709]
[1771663668316,0.014707,68012.0,68003.0,0.014709]
[1771663668520,0.21075074,68011.0,68003.0,0.014709]
[1771663668716,0.014707,68012.0,68003.0,0.014709]
[1771663668919,0.2107508,68011.0,68003.0,0.014709]
[1771663669132,0.014707,68012.0,68003.0,0.029418]
[1771663669331,0.2107508,68011.0,68003.0,0.029418]
[1771663669531,0.014707,68012.0,68003.0,0.029418]